Workbook

Sheet IND.1
A3: INFORMACIONES | B3: Bailarín V.E. | C3: Campillo | D3: Casa Cuna | E3: Delicias | F3: Esgueva | G3: J.M.Luelmo | H3: J.L Mosquera | I3: Parquesol | J3: Pilarica | K3: Rondilla | L3: La Victoria | M3: Zona Este | N3: Zona Sur | O3: SEMANAL | P3: MENSUAL | Q3: % trimestre
A4: ENERO | B4: 674 | C4: 902 | D4: 401 | E4: 670 | F4: 501 | G4: 514 | H4: 1398 | I4: 1338 | J4: 595 | K4: 710 | L4: 497 | M4: 712 | N4: 1415 | O4: =SUM(B4:N4) -> 10327 | P4: =O4*4 -> 41308
A5: FEBRERO | B5: 598 | C5: 842 | D5: 378 | E5: 720 | F5: 385 | G5: 718 | H5: 1531 | I5: 1290 | J5: 629 | K5: 600 | L5: 358 | M5: 751 | N5: 1349 | O5: =SUM(B5:N5) -> 10149 | P5: =O5*4 -> 40596 | Q5: =AVERAGE(P4:P6) -> 41474.66667
A6: MARZO | B6: 561 | C6: 783 | D6: 437 | E6: 715 | F6: 448 | G6: 767 | H6: 1149 | I6: 1431 | J6: 632 | K6: 505 | L6: 300 | M6: 701 | N6: 2201 | O6: 10630 | P6: 42520
A7: ABRIL | B7: 822 | C7: 903 | D7: 410 | E7: 819 | F7: 547 | G7: 713 | H7: 1385 | I7: 1258 | J7: 466 | K7: 775 | L7: 332 | M7: 778 | N7: 1634 | O7: 10842 | P7: 43368
A8: MAYO | B8: 936 | C8: 791 | D8: 358 | E8: 749 | F8: 535 | G8: 1110 | H8: 1076 | I8: 1142 | J8: 437 | K8: 680 | L8: 393 | M8: 777 | N8: 1872 | O8: 10856 | P8: 43424 | Q8: =AVERAGE(P7,P8,P9) -> 42578.66667
A9: JUNIO | B9: 676 | C9: 649 | D9: 411 | E9: 782 | F9: 575 | G9: 1034 | H9: 1109 | I9: 1357 | J9: 636 | K9: 815 | L9: 282 | M9: 629 | N9: 1281 | O9: 10236 | P9: 40944
A10: JULIO | B10: 276 | C10: 245 | D10: 116 | E10: 241 | F10: 274 | G10: 511 | H10: 219 | I10: 403 | J10: 197 | K10: 255 | L10: 116 | M10: 244 | N10: 522 | O10: 3619 | P10: 14476
A11: AGOSTO | B11: 147 | C11: 262 | D11: 171 | E11: 142 | F11: 225 | G11: 232 | H11: 269 | I11: 429 | J11: 359 | K11: 138 | L11: 106 | M11: 214 | N11: 471 | O11: 3165 | P11: 12660 | Q11: =AVERAGE(P10:P12) -> 26913.33333
A12: SEPTIEMBRE | B12: 848 | C12: 129 | D12: 401 | E12: 129 | F12: 590 | G12: 1261 | H12: 1358 | I12: 1178 | J12: 1141 | K12: 760 | L12: 807 | M12: 799 | N12: 4000 | O12: 13401 | P12: 53604
A13: OCTUBRE | B13: 1064 | C13: 680 | D13: 375 | E13: 560 | F13: 552 | G13: 917 | H13: 1185 | I13: 1254 | J13: 653 | K13: 586 | L13: 495 | M13: 563 | N13: 1871 | O13: 10755 | P13: 43020
A14: NOVIEMBRE | B14: 1007 | C14: 612 | D14: 557 | E14: 1160 | F14: 651 | G14: 1129 | H14: 1318 | I14: 1218 | J14: 668 | K14: 810 | L14: 403 | M14: 597 | N14: 1608 | O14: 11738 | P14: 46952 | Q14: =AVERAGE(P13:P15) -> 43289.33333
A15: DICIEMBRE | B15: 456 | C15: 260 | D15: 612 | E15: 737 | F15: 695 | G15: 1334 | H15: 1375 | I15: 1144 | J15: 507 | K15: 777 | L15: 210 | M15: 742 | N15: 1125 | O15: 9974 | P15: 39896
A16: TOTAL | B16: =SUM(B4:B15) -> 8065 | C16: 7058 | D16: 4627 | E16: 7424 | F16: 5978 | G16: 10240 | H16: 13372 | I16: 13442 | J16: 6920 | K16: 7411 | L16: 4299 | M16: 7507 | N16: 19349 | O16: =SUM(O4:O15) -> 115692 | P16: 462768
A34: C/CENTROS CÍVICOS. YG
C37: INFORMACIONES PRESENCIALES TRIMESTRALES
C39: MEDIA INFORMACIONES | E39: 1er. Trimes. | F39: 2º trimes. | G39: 3er. Trimes. | H39: 4º trimes.
E40: 41475 | F40: 42579 | G40: 26913 | H40: 43289
A62: C/CENTROS CÍVICOS. YG

Sheet IND.2plazas
A3: PLAZAS/AÑO | B3: Bailarín V.E. | C3: Campillo | D3: Casa Cuna | E3: Delicias | F3: Esgueva | G3: Luelmo | H3: Mosquera | I3: Parquesol | J3: Pilarica | K3: Rondilla | L3: Victoria | M3: Zona Este | N3: Zona Sur | O3: TOTAL Infantil | P3: Total Adulto | R3: TOTAL
A4: ENERO-Infantil | B4: 60 | C4: 0 | D4: 0 | E4: 85 | F4: 0 | G4: 48 | H4: 120 | I4: 135 | J4: 0 | K4: 100 | L4: 60 | M4: 78 | N4: 0 | O4: =SUM(B4:N4) -> 686
A5: ENERO-Adultos(yoga) | B5: 150 | C5: 120 | D5: 30 | E5: 54 | F5: 110 | G5: 135 | H5: 0 | I5: 200 | J5: 80 | K5: 80 | L5: 88 | M5: 210 | N5: 138 | P5: =SUM(B5:O5) -> 1395
A6: ENERO-TOTAL | B6: =SUM(B4:B5) -> 210 | C6: 120 | D6: 30 | E6: 139 | F6: 110 | G6: 183 | H6: =SUM(H4:H5) -> 120 | I6: 335 | J6: 80 | K6: 180 | L6: 148 | M6: 288 | N6: 138 | R6: =O4+P5 -> 2081
A7: FEBRERO-Infantil.carn.valla | B7: 172 | C7: 132 | D7: 48 | E7: 218 | F7: 104 | G7: 48 | H7: 312 | I7: 403 | J7: 90 | K7: 416 | L7: 176 | M7: 260 | N7: 116 | O7: =SUM(B7:N7) -> 2495
A8: FEBRERO-Adultos | B8: 30 | C8: 0 | D8: 0 | E8: 54 | F8: 0 | G8: 0 | H8: 86 | I8: 50 | J8: 0 | K8: 0 | L8: 0 | M8: 48 | N8: 30 | P8: =SUM(B8:O8) -> 298
A9: FEBRERO-TOTAL | B9: =SUM(B7:B8) -> 202 | C9: 132 | D9: 48 | E9: 272 | F9: 104 | G9: 48 | H9: 398 | I9: 453 | J9: 90 | K9: 416 | L9: 176 | M9: 308 | N9: 146 | R9: =SUM(B9:Q9) -> 2793
A10: MARZO-Infantil (Semana Santa) | B10: 408 | C10: 348 | D10: 174 | E10: 419 | F10: 150 | G10: 1050 | H10: 471 | I10: 540 | J10: 252 | K10: 498 | L10: 408 | M10: 458 | N10: 426 | O10: =SUM(B10:N10) -> 5602
A11: MARZO-Adultos | B11: 30 | C11: 0 | D11: 0 | E11: 158 | F11: 0 | G11: 0 | H11: 98 | I11: 50 | J11: 0 | K11: 0 | L11: 0 | M11: 48 | N11: 30 | P11: =SUM(B11:O11) -> 414
A12: MARZO-TOTAL | B12: =SUM(B10:B11) -> 438 | C12: 348 | D12: 174 | E12: 577 | F12: 150 | G12: 1050 | H12: 569 | I12: 590 | J12: 252 | K12: 498 | L12: 408 | M12: 506 | N12: 456 | R12: =SUM(B12:Q12) -> 6016
A13: ABRIL-Infantil | B13: 140 | C13: 0 | D13: 0 | E13: 122 | F13: 0 | G13: 48 | H13: 116 | I13: 156 | J13: 0 | K13: 400 | L13: 60 | M13: 364 | N13: 162 | O13: =SUM(B13:N13) -> 1568
A14: ABRIL-Adultos(yoga) | B14: 150 | C14: 120 | D14: 30 | E14: 54 | F14: 110 | G14: 135 | H14: 108 | I14: 200 | J14: 72 | K14: 80 | L14: 132 | M14: 168 | N14: 30 | P14: =SUM(B14:O14) -> 1389
A15: ABRIL-TOTAL | B15: =SUM(B13:B14) -> 290 | C15: 120 | D15: 30 | E15: 176 | F15: 110 | G15: 183 | H15: 224 | I15: 356 | J15: 72 | K15: 480 | L15: 192 | M15: 532 | N15: 192 | R15: =SUM(B15:Q15) -> 2957
A16: MAYO-Infantil | B16: 68 | C16: 0 | D16: 0 | E16: 107 | F16: 0 | G16: 48 | H16: 116 | I16: 61 | J16: 0 | K16: 0 | L16: 60 | M16: 62 | N16: 60 | O16: =SUM(B16:N16) -> 582
A17: MAYO-Adultos | B17: 30 | C17: 0 | D17: 0 | E17: 54 | F17: 0 | G17: 0 | H17: 108 | I17: 50 | J17: 0 | K17: 0 | L17: 22 | M17: 48 | N17: 30 | P17: =SUM(B17:O17) -> 342
A18: MAYO-TOTAL | B18: =SUM(B16:B17) -> 98 | C18: 0 | D18: 0 | E18: 161 | F18: 0 | G18: 48 | H18: 224 | I18: 111 | J18: 0 | K18: 0 | L18: 82 | M18: 110 | N18: 90 | R18: =SUM(B18:Q18) -> 924
A19: JUNIO-Infantil | B19: 60 | C19: 0 | D19: 0 | E19: 40 | F19: 0 | G19: 48 | H19: 87 | I19: 0 | J19: 0 | K19: 0 | L19: 60 | M19: 62 | N19: 30 | O19: =SUM(B19:N19) -> 387
A20: JUNIO-Adultos | B20: 30 | C20: 0 | D20: 0 | E20: 58 | F20: 0 | G20: 0 | H20: 84 | I20: 50 | J20: 0 | K20: 0 | L20: 0 | M20: 16 | N20: 0 | P20: =SUM(B20:O20) -> 238
A21: JUNIO-TOTAL | B21: =SUM(B19:B20) -> 90 | C21: 0 | D21: 0 | E21: 98 | F21: 0 | G21: 48 | H21: 171 | I21: 50 | J21: =SUM(J19:J20) -> 0 | K21: 0 | L21: 60 | M21: 78 | N21: 30 | R21: =SUM(B21:Q21) -> 625
A22: JULIO-Infantil (verano) | B22: 148 | C22: 180 | D22: 58 | E22: 148 | F22: 156 | G22: 212 | H22: 132 | I22: 290 | J22: 232 | K22: 360 | L22: 244 | M22: 264 | N22: 412 | O22: =SUM(B22:N22) -> 2836
A23: JULIO-Adultos | B23: 0 | C23: 0 | D23: 0 | E23: 0 | F23: 0 | G23: 0 | H23: 0 | I23: 0 | J23: 0 | K23: 0 | L23: 0 | M23: 0 | N23: 0 | P23: =SUM(B23:O23) -> 0
A24: JULIO-TOTAL | B24: =SUM(B22:B23) -> 148 | C24: 180 | D24: 58 | E24: 148 | F24: 156 | G24: 212 | H24: 132 | I24: 290 | J24: 232 | K24: 360 | L24: 244 | M24: 264 | N24: 412 | R24: =SUM(B24:Q24) -> 2836
A25: AGOSTO-Infantil(verano) | B25: 164 | C25: 180 | D25: 116 | E25: 74 | F25: 104 | G25: 205 | H25: 132 | I25: 226 | J25: 232 | K25: 360 | L25: 193 | M25: 218 | N25: 360 | O25: =SUM(B25:N25) -> 2564
A26: AGOSTO-Adultos | B26: 0 | C26: 0 | D26: 0 | E26: 0 | F26: 0 | G26: 0 | H26: 0 | I26: 0 | J26: 0 | K26: 0 | L26: 0 | M26: 0 | N26: 0 | P26: =SUM(B26:O26) -> 0
A27: AGOSTO TOTAL | B27: =SUM(B25:B26) -> 164 | C27: 180 | D27: 116 | E27: 74 | F27: 104 | G27: 205 | H27: 132 | I27: 226 | J27: 232 | K27: 360 | L27: 193 | M27: 218 | N27: 360 | R27: =SUM(B27:Q27) -> 2564
A28: SEPTIEMBRE-Infantil | B28: 60 | C28: 0 | D28: 0 | E28: 0 | F28: 0 | G28: 10 | H28: 0 | I28: 0 | J28: 0 | K28: 0 | L28: 0 | M28: 0 | N28: 0 | O28: =SUM(B28:N28) -> 70
A29: SEPTIEMBRE-Adultos | B29: 0 | C29: 0 | D29: 0 | E29: 0 | F29: 0 | G29: 0 | H29: 0 | I29: 0 | J29: 0 | K29: 0 | L29: 0 | M29: 0 | N29: 0 | P29: =SUM(B29:O29) -> 0
A30: SEPTIEMBRE-TOTAL | B30: =SUM(B28:B29) -> 60 | C30: 0 | D30: 0 | E30: 0 | F30: 0 | G30: 10 | H30: 0 | I30: 0 | J30: 0 | K30: 0 | L30: 0 | M30: 0 | N30: 0 | R30: =SUM(B30:Q30) -> 70
A31: OCTUBRE-Infantil | B31: 60 | C31: 0 | D31: 0 | E31: 102 | F31: 0 | G31: 125 | H31: 60 | I31: 40 | K31: 115 | L31: 15 | M31: 66 | N31: 27 | O31: =SUM(B31:N31) -> 610
A32: OCTUBRE-Adultos (yoga) | B32: 150 | C32: 120 | D32: 30 | E32: 163 | F32: 110 | G32: 135 | H32: 81 | I32: 185 | J32: 80 | K32: 80 | L32: 88 | M32: 219 | N32: 150 | P32: =SUM(B32:O32) -> 1591
A33: OCTUBRE-TOTAL | B33: =SUM(B31:B32) -> 210 | C33: 120 | D33: 30 | E33: 265 | F33: 110 | G33: 260 | H33: 141 | I33: 225 | J33: 80 | K33: 195 | L33: 103 | M33: 285 | N33: 177 | R33: =SUM(B33:Q33) -> 2201
A34: NOVIEMBRE-Infantil | B34: 174 | C34: 0 | D34: 0 | E34: 120 | F34: 0 | G34: 135 | H34: 102 | I34: 40 | J34: 0 | K34: 142 | L34: 31 | M34: 242 | N34: 54 | O34: =SUM(B34:N34) -> 1040
A35: NOVIEMBRE-Adultos | B35: 30 | C35: 0 | D35: 0 | E35: 59 | F35: 0 | G35: 90 | H35: 100 | I35: 35 | J35: 0 | K35: 0 | L35: 72 | M35: 45 | N35: 42 | P35: =SUM(B35:O35) -> 473
A36: NOVIEMBRE-TOTAL | B36: =SUM(B34:B35) -> 204 | C36: 0 | D36: 0 | E36: 179 | F36: 0 | G36: 225 | H36: 202 | I36: 75 | J36: 0 | K36: 142 | L36: 103 | M36: 287 | N36: 96 | R36: =SUM(B36:Q36) -> 1513
A37: DICIEMBRE-Infantil(navidad) | B37: 375 | C37: 315 | D37: 29 | E37: 514 | F37: 320 | G37: 991 | H37: 223 | I37: 649 | J37: 180 | K37: 431 | L37: 578 | M37: 540 | N37: 348 | O37: =SUM(B37:N37) -> 5493
A38: DICIEMBRE-Adultos | B38: 25 | C38: 0 | D38: 0 | E38: 163 | F38: 0 | G38: 90 | H38: 90 | I38: 35 | M38: 45 | N38: 42 | P38: =SUM(B38:O38) -> 490
A39: DICIEMBRE-TOTAL | B39: =SUM(B37:B38) -> 400 | C39: 315 | D39: 29 | E39: 677 | F39: 320 | G39: 1081 | H39: 313 | I39: 684 | J39: 180 | K39: 431 | L39: 578 | M39: 585 | N39: =SUM(N37:N38) -> 390 | R39: =SUM(B39:Q39) -> 5983
O40: =SUM(O4:O39) -> 23933 | P40: =SUM(P5:P39) -> 6630 | R40: =SUM(R6:R39) -> 30563
A41: Vallatarde y vallanoche | B41: Yoga | D41: ludoteca | F41: actividades estacionales
A42: C/CENTROS CÍVICOS. YG
B46: ENERO | C46: FEBRERO | D46: MARZO | E46: ABRIL | F46: MAYO | G46: JUNIO | H46: JULIO | I46: AGOSTO | J46: SEPTIEMBRE | K46: OCTUBRE | L46: NOVIEMBRE | M46: DICIEMBRE | N46: TOTAL
A47: PLAZAS/AÑO-INFANTIL | B47: 686 | C47: 2495 | D47: 5602 | E47: 1568 | F47: 582 | G47: 387 | H47: 2836 | I47: 2564 | J47: 70 | K47: 610 | L47: 1040 | M47: 5493 | N47: =SUM(B47:M47) -> 23933
A48: PLAZAS/AÑO-ADULTO | B48: 1395 | C48: 298 | D48: 414 | E48: 1389 | F48: 342 | G48: 238 | H48: 0 | I48: 0 | J48: 0 | K48: 1591 | L48: 473 | M48: 490 | N48: =SUM(B48:M48) -> 6630
A49: PLAZAS/AÑO-TODAS | B49: =SUM(B47:B48) -> 2081 | C49: =SUM(C47:C48) -> 2793 | D49: 6016 | E49: 2957 | F49: 924 | G49: 625 | H49: 2836 | I49: 2564 | J49: 70 | K49: 2201 | L49: 1513 | M49: 5983 | N49: =SUM(N47:N48) -> 30563
A76: C/CENTROS CÍVICOS. YG

Sheet IND.3 act cult
A3: ACTIVIDADES | B3: Bailarín V.E. 1 | C3: Campillo 2 | D3: Casa Cuna 3 | E3: Delicias 4 | F3: Esgueva 5 | G3: Luelmo 6 | H3: Mosquera 7 | I3: Parquesol 8 | J3: Pilarica 9 | K3: Rondilla 10 | L3: La Victoria 11 | M3: Zona Este 12 | N3: Zona Sur 13 | O3: TOTAL
A4: ENERO | B4: 9 | C4: 0 | D4: 1 | E4: 8 | F4: 9 | G4: 5 | H4: 12 | I4: 5 | J4: 9 | K4: 11 | L4: 6 | M4: 3 | N4: 8 | O4: =SUM(B4:N4) -> 86
A5: FEBRERO | B5: 17 | C5: 2 | D5: 2 | E5: 11 | F5: 6 | G5: 9 | H5: 19 | I5: 7 | J5: 3 | K5: 16 | L5: 7 | M5: 9 | N5: 16 | O5: 124
A6: MARZO | B6: 12 | C6: 3 | D6: 3 | E6: 18 | F6: 4 | G6: 13 | H6: 28 | I6: 9 | J6: 5 | K6: 11 | L6: 7 | M6: 10 | N6: 27 | O6: 150
A7: ABRIL | B7: 14 | C7: 9 | D7: 3 | E7: 20 | F7: 5 | G7: 15 | H7: 21 | I7: 11 | J7: 7 | K7: 10 | L7: 7 | M7: 8 | N7: 24 | O7: 154
A8: MAYO | B8: 15 | C8: 7 | D8: 1 | E8: 22 | F8: 7 | G8: 20 | H8: 15 | I8: 11 | J8: 10 | K8: 15 | L8: 5 | M8: 11 | N8: 26 | O8: 165
A9: JUNIO | B9: 25 | C9: 2 | D9: 4 | E9: 23 | F9: 8 | G9: 5 | H9: 10 | I9: 21 | J9: 4 | K9: 23 | L9: 3 | M9: 11 | N9: 7 | O9: 146
A10: JULIO | B10: 0 | C10: 0 | D10: 0 | E10: 3 | F10: 0 | G10: 0 | H10: 0 | I10: 0 | J10: 0 | K10: 0 | L10: 0 | M10: 0 | N10: 0 | O10: 3
A11: AGOSTO | B11: 0 | C11: 0 | D11: 0 | E11: 0 | F11: 0 | G11: 0 | H11: 0 | I11: 0 | J11: 0 | K11: 1 | L11: 0 | M11: 1 | N11: 0 | O11: 2
A12: SEPTIEMBRE | B12: 9 | C12: 2 | D12: 2 | E12: 6 | F12: 3 | G12: 10 | H12: 5 | I12: 6 | J12: 4 | K12: 3 | L12: 2 | M12: 4 | N12: 5 | O12: 61
A13: OCTUBRE | B13: 17 | C13: 1 | D13: 6 | E13: 16 | F13: 5 | G13: 22 | H13: 19 | I13: 8 | J13: 12 | K13: 12 | L13: 6 | M13: 14 | N13: 25 | O13: 163
A14: NOVIEMBRE | B14: 19 | C14: 9 | D14: 5 | E14: 25 | F14: 6 | G14: 15 | H14: 25 | I14: 15 | J14: 17 | K14: 20 | L14: 9 | M14: 21 | N14: 26 | O14: 212
A15: DICIEMBRE | B15: 24 | C15: 4 | D15: 7 | E15: 20 | F15: 16 | G15: 15 | H15: 18 | I15: 15 | J15: 9 | K15: 22 | L15: 7 | M15: 11 | N15: 13 | O15: 181
A16: TOTAL | B16: =SUM(B4:B15) -> 161 | C16: 39 | D16: 34 | E16: 172 | F16: 69 | G16: 129 | H16: 172 | I16: 108 | J16: 80 | K16: 144 | L16: 59 | M16: 103 | N16: 177 | O16: =SUM(O4:O15) -> 1447
A35: C/CENTROS CÍVICOS. YG

Sheet IND.4 act.inf
A3: PLAZAS/AÑO | B3: Bailarín V.E. | C3: Campillo | D3: Casa Cuna | E3: Delicias | F3: Esgueva | G3: Luelmo | H3: Mosquera | I3: Parquesol | J3: Pilarica | K3: Rondilla | L3: Victoria | M3: Zona Este | N3: Zona Sur | O3: Las Flores | P3: Overuela | Q3: P.Duero | R3: TOTAL talleres | S3: Total Activ abiertas | U3: TOTAL
A4: ENERO-Talleres | R4: =SUM(B4:N4) -> 0
A5: ENERO-Act. abierta | S5: =SUM(B5:R5) -> 0
A6: ENERO-TOTAL | U6: =SUM(B6:T6) -> 0
A7: FEBRERO- (carnav. Vallat) | B7: 8 | C7: 8 | D7: 2 | E7: 7 | F7: 4 | G7: 18 | H7: 12 | I7: 10 | J7: 6 | K7: 6 | L7: 6 | M7: 8 | N7: 12 | O7: 2 | P7: 2 | Q7: 0 | R7: =SUM(B7:Q7) -> 111
A8: FEBRERO-Act. Abierta | S8: =SUM(B8:R8) -> 0
A9: FEBRERO-TOTAL | R9: 111 | U9: =SUM(B9:T9) -> 111
A10: MARZO-Talleres (Semana Santa) | B10: 25 | C10: 24 | D10: 6 | E10: 21 | F10: 15 | G10: 48 | H10: 24 | I10: 35 | J10: 18 | K10: 39 | L10: 24 | M10: 24 | N10: 36 | O10: 6 | P10: 6 | Q10: 0 | R10: =SUM(B10:Q10) -> 351
A11: MARZO-Act. Abierta | S11: =SUM(B11:R11) -> 0
A12: MARZO-TOTAL | R12: 351 | U12: =SUM(B12:T12) -> 351
A13: ABRIL-Talleres | R13: =SUM(B13:N13) -> 0
A14: ABRIL-Act. Abierta | S14: =SUM(B14:R14) -> 0
A15: ABRIL-TOTAL | U15: =SUM(B15:T15) -> 0
A16: MAYO-Talleres | R16: =SUM(B16:N16) -> 0
A17: MAYO-Act. Abierta | S17: =SUM(B17:R17) -> 0
A18: MAYO-TOTAL | U18: =S17+R16 -> 0
A19: JUNIO-Talleres | R19: =SUM(B19:N19) -> 0
A20: JUNIO-Act. Abierta | S20: =SUM(B20:R20) -> 0
A21: JUNIO-TOTAL | U21: =R19+S20 -> 0
A22: JULIO-Talleres(Verano) | B22: 10 | C22: 8 | D22: 4 | E22: 9 | F22: 10 | G22: 27 | H22: 18 | I22: 23 | J22: 21 | K22: 18 | L22: 15 | M22: 14 | N22: 20 | O22: 2 | P22: 4 | Q22: 2 | R22: =SUM(B22:Q22) -> 205
A23: JULIO-Act- Abiertas | S23: =SUM(B23:R23) -> 0
A24: JULIO-TOTAL | R24: 205 | U24: =SUM(B24:T24) -> 205
A25: AGOSTO-Talleres(Verano) | B25: 8 | C25: 8 | D25: 4 | E25: 5 | F25: 8 | G25: 17 | H25: 10 | I25: 15 | J25: 8 | K25: 16 | L25: 14 | M25: 10 | N25: 14 | O25: 1 | P25: 4 | Q25: 2 | R25: =SUM(B25:Q25) -> 144
A26: AGOSTO-Act. Abierta | S26: =SUM(B26:R26) -> 0
A27: AGOSTO TOTAL | R27: 144 | U27: =R25+S26 -> 144
A28: SEPTIEMBRE-Talleres | R28: =SUM(B28:N28) -> 0
A29: SEPTIEMBRE-Act. Abierta | S29: =SUM(B29:R29) -> 0
A30: SEPTIEMBRE-TOTAL | U30: =SUM(B30:T30) -> 0
A31: OCTUBRE-Talleres | R31: =SUM(B31:N31) -> 0
A32: OCTUBRE-Act. Abierta | S32: =SUM(B32:R32) -> 0
A33: OCTUBRE-TOTAL | U33: =SUM(B33:T33) -> 0
A34: NOVIEMBRE-Talleres | R34: =SUM(B34:N34) -> 0
A35: NOVIEMBRE-Act. Abierta | S35: =SUM(B35:R35) -> 0
A36: NOVIEMBRE-TOTAL | U36: =SUM(B36:T36) -> 0
A37: DICIEMBRE-Talleres(Navidad) | B37: 24 | C37: 28 | D37: 0 | E37: 33 | F37: 21 | G37: 59 | H37: 55 | I37: 35 | J37: 21 | K37: 27 | L37: 36 | M37: 35 | N37: 35 | O37: 7 | P37: 7 | Q37: 7 | R37: =SUM(B37:Q37) -> 430
A38: DICIEMBRE-Act. Abierta | S38: =SUM(B38:R38) -> 0
A39: DICIEMBRE-TOTAL | R39: 430 | U39: =SUM(B39:T39) -> 430
R40: 1241 | S40: =SUM(S5:S39) -> 0 | U40: =SUM(U6:U39) -> 1241
A42: C/CENTROS CÍVICOS. YG
B48: ENERO | C48: FEBRERO | D48: MARZO | E48: ABRIL | F48: MAYO | G48: JUNIO | H48: JULIO | I48: AGOSTO | J48: SEPTIEMBRE | K48: OCTUBRE | L48: NOVIEMBRE | M48: DICIEMBRE | N48: TOTAL
A49: Nº ACTIVIDADES TALLER | C49: 111 | D49: 351 | H49: 205 | I49: 144 | M49: 430 | N49: =SUM(B49:M49) -> 1241
A50: Nº ACTIVIDADES ABIERTAS
A51: TOTAL ACTIVIDADES
A78: C/CENTROS CÍVICOS. YG
A79: NOTAS:
A80: Febrero, inscripción carnaval
A81: Marzo, inscripción semana santa
A82: Junio, inscripción verano, los talleres se realizan en julio y agosto
A83: Diciembre, inscripción navidad

Sheet IND.5 EXPOS
A3: EXPOSICIONES | B3: B.V.E. | C3: Campillo | D3: Casa Cuna | E3: Delicias | F3: Esgueva | G3: Luelmo | H3: Mosquera | I3: Parquesol | J3: Pilarica | K3: Rondilla | L3: Victoria | M3: Zona Este | N3: Zona Sur | O3: TOTAL
A4: ENERO | B4: 2 | C4: 1 | D4: 2 | E4: 2 | F4: 2 | G4: 3 | H4: 4 | I4: 2 | J4: 1 | K4: 1 | L4: 1 | M4: 1 | N4: 4 | O4: =SUM(B4:N4) -> 26
A5: FEBRERO | B5: 2 | C5: 0 | D5: 2 | E5: 1 | F5: 2 | G5: 2 | H5: 3 | I5: 2 | J5: 1 | K5: 2 | L5: 2 | M5: 0 | N5: 4 | O5: 23
A6: MARZO | B6: 2 | C6: 1 | D6: 2 | E6: 3 | F6: 2 | G6: 2 | H6: 3 | I6: 2 | J6: 1 | K6: 2 | L6: 2 | M6: 2 | N6: 4 | O6: 28
A7: ABRIL | B7: 2 | C7: 2 | D7: 2 | E7: 2 | F7: 2 | G7: 2 | H7: 5 | I7: 2 | J7: 1 | K7: 3 | L7: 2 | M7: 2 | N7: 4 | O7: 31
A8: MAYO | B8: 2 | C8: 2 | D8: 2 | E8: 2 | F8: 2 | G8: 3 | H8: 4 | I8: 1 | J8: 1 | K8: 3 | L8: 2 | M8: 2 | N8: 6 | O8: 32
A9: JUNIO | B9: 2 | C9: 2 | D9: 2 | E9: 4 | F9: 2 | G9: 3 | H9: 4 | I9: 1 | J9: 1 | K9: 2 | L9: 2 | M9: 2 | N9: 4 | O9: 31
A10: JULIO | B10: 1 | C10: 1 | D10: 1 | E10: 1 | F10: 1 | G10: 1 | H10: 1 | I10: 1 | J10: 1 | K10: 1 | L10: 1 | M10: 1 | N10: 1 | O10: 13
A11: AGOSTO | B11: 1 | C11: 0 | D11: 1 | E11: 1 | F11: 1 | G11: 1 | H11: 1 | I11: 1 | J11: 1 | K11: 1 | L11: 1 | M11: 1 | N11: 1 | O11: 12
A12: SEPTIEMBRE | B12: 3 | C12: 0 | D12: 2 | E12: 2 | F12: 1 | G12: 1 | H12: 3 | I12: 2 | J12: 1 | K12: 2 | L12: 1 | M12: 1 | N12: 3 | O12: 22
A13: OCTUBRE | B13: 2 | C13: 2 | D13: 2 | E13: 3 | F13: 2 | G13: 2 | H13: 4 | I13: 2 | J13: 2 | K13: 2 | L13: 1 | M13: 2 | N13: 4 | O13: 30
A14: NOVIEMBRE | B14: 2 | C14: 2 | D14: 2 | E14: 2 | F14: 2 | G14: 2 | H14: 5 | I14: 2 | J14: 2 | K14: 2 | L14: 2 | M14: 2 | N14: 4 | O14: 31
A15: DICIEMBRE | B15: 2 | C15: 2 | D15: 2 | E15: 3 | F15: 2 | G15: 2 | H15: 6 | I15: 2 | J15: 1 | K15: 2 | L15: 2 | M15: 2 | N15: 3 | O15: 31
A16: Por Centros | B16: =SUM(B4:B15) -> 23 | C16: 15 | D16: 22 | E16: 26 | F16: 21 | G16: 24 | H16: 43 | I16: 20 | J16: 14 | K16: 23 | L16: 19 | M16: 18 | N16: 42 | O16: 310
A36: C/CENTROS CÍVICOS. YG
A37: Se ponen a disposición de los artistas nóveles y colectivos artísticos o culturales 29 espacios para la realización de exposiciones.
A42: * Se realizaron un total de 310 exposiciones, distribuidas en 13 CENTROS CÍVICOS más 2 CENTROS MUNICIPALES, CON EL SIGUIENTE DESGLOSE :
A44: Se ponen a disposición de los artistas nóveles y colectivos artísticos o culturales 29 espacios para la realización de exposiciones.
A46: * Nº de expositores: 50
A48: * Nº de expositoras: 38
A50: *Nº entidades o grupos: 222
A52: Número de nuevos expositores respecto al año anterior: 64 expositores
A54: ONEGÉS | B54: ASOCIACIONES VECINALES Y OTRAS ASOCIACIONES/ ENTIDADES | C54: COLECTIVOS ARTÍSTICOS | D54: VIOLENCIA DE GÉNERO | E54: ARTISTAS INDIVIDUALES | F54: TEMÁTICAS AYUNTAMIENTO | G54: SERVICIOS MUNICIPALES | H54: OTRAS
A55: 29 | B55: 63 | C55: 47 | D55: 6 | E55: 87 | F55: 70 | G55: 15 | H55: 0

Sheet IND.6 ESPACIO
A3: Centro Cívico | B3: B.V.E. | C3: Campillo | D3: Casa Cuna | E3: Delicias | F3: Esgueva | G3: Luelmo | H3: Mosquera | I3: Parquesol | J3: Pilarica | K3: Rondilla | L3: Victoria | M3: Zona Este | N3: Zona Sur
A4: % ESPACIO DISP/.MAÑANAS | B4: % | C4: 0.931 | D4: 0.9288 | E4: 0.5238 | F4: % | G4: 0.9878 | H4: % | I4: 0.7714 | J4: 0.9583 | K4: 0.9761 | L4: 0.9482 | M4: 0.7129 | N4: 0.9541
A5: % ESPACIO DISP/.TARDES | B5: % | C5: 0.9118 | D5: 0.8677 | E5: 0 | F5: % | G5: 0.9019 | H5: % | I5: 0.7277 | J5: 0.8941 | K5: 0.9089 | L5: 0.8388 | M5: 0.6579 | N5: 0.9445
A6: % ESPACIO DISP/.TOTAL | B6: 0.9618 | C6: 0.918 | D6: 0.8982 | E6: 0.5238 | F6: 418h.=88,56% | G6: 0.9448 | H6: 0.7 | I6: 0.7513 | J6: 0.9194 | K6: 0.942 | L6: 0.8927 | M6: 0.68 | N6: 0.9492
A7: %OCUPACIÓN MAÑANAS | B7: % | C7: 0.3724 | D7: 0.2466 | E7: 0.75 | F7: % | G7: 0.2232 | H7: 0.4 | I7: 46.70% | J7: 39h=14,77% | K7: 128,5h=34,1% | L7: 68h=39.8% | M7: 0.0517 | N7: 221h=42,33%
A8: %OCUPACIÓN TARDES | B8: % | C8: 0.6588 | D8: 20.84% | E8: 1 | F8: % | G8: 0.7856 | H8: 0.6 | I8: 0.6 | J8: 181h=49,12% | K8: 240h=61,5% | L8: 117h=65% | M8: 0.2085 | N8: 339h=62,77%
A9: %OCUPACIóN TOTAL | B9: 0.3838 | C9: 0.527 | D9: 45.50% | E9: 0.875 | F9: 138h=29,24% | G9: 0.5044 | H9: 0.5 | I9: 0.5282 | J9: 0.4354 | K9: 0.434 | L9: 0.5226 | M9: 0.126 | N9: 0.5255

Sheet IND.7 APERT.
A3: DIAS/AÑO | B3: Bailarín V.E. 1 | C3: Campillo 2 | D3: Casa Cuna 3 | E3: Delicias 4 | F3: Esgueva 5 | G3: J.Mª Luelmo 6 | H3: J.L Mosquera 7 | I3: Parquesol 8 | J3: Pilarica 9 | K3: Rondilla 10 | L3: Victoria 11 | M3: Zona Este 12 | N3: Zona Sur 13 | O3: TOTAL | P3: MEDIA
A4: ENERO | B4: 25 | C4: 23 | D4: 23 | E4: 28 | F4: 25 | G4: 23 | H4: 23 | I4: 23 | J4: 23 | K4: 23 | L4: 23 | M4: 23 | N4: 23 | O4: =SUM(B4:N4) -> 308 | P4: =AVERAGE(B4:N4) -> 23.69230769
A5: FEBRERO | B5: 27 | C5: 26 | D5: 25 | E5: 29 | F5: 25 | G5: 25 | H5: 27 | I5: 25 | J5: 26 | K5: 27 | L5: 25 | M5: 25 | N5: 30 | O5: 342 | P5: =AVERAGE(B5:N5) -> 26.30769231
A6: MARZO | B6: 25 | C6: 26 | D6: 24 | E6: 27 | F6: 24 | G6: 24 | H6: 25 | I6: 25 | J6: 26 | K6: 25 | L6: 24 | M6: 24 | N6: 25 | O6: 324 | P6: 24.92307692
A7: ABRIL | B7: 26 | C7: 27 | D7: 25 | E7: 30 | F7: 25 | G7: 25 | H7: 27 | I7: 25 | J7: 26 | K7: 26 | L7: 25 | M7: 25 | N7: 25 | O7: 337 | P7: 25.92307692
A8: MAYO | B8: 25 | C8: 24 | D8: 24 | E8: 30 | F8: 24 | G8: 24 | H8: 24 | I8: 24 | J8: 23 | K8: 24 | L8: 24 | M8: 24 | N8: 24 | O8: 318 | P8: 24.46153846
A9: JUNIO | B9: 27 | C9: 27 | D9: 26 | E9: 30 | F9: 26 | G9: 28 | H9: 26 | I9: 26 | J9: 26 | K9: 26 | L9: 26 | M9: 27 | N9: 26 | O9: 347 | P9: 26.69230769
A10: JULIO | B10: 21 | C10: 21 | D10: 21 | E10: 22 | F10: 21 | G10: 25 | H10: 22 | I10: 21 | J10: 21 | K10: 26 | L10: 21 | M10: 26 | N10: 26 | O10: 294 | P10: 22.61538462
A11: AGOSTO | B11: 22 | C11: 22 | D11: 22 | E11: 22 | F11: 22 | G11: 26 | H11: 22 | I11: 22 | J11: 22 | K11: 26 | L11: 22 | M11: 26 | N11: 25 | O11: 301 | P11: 23.15384615
A12: SEPTIEMBRE | B12: 23 | C12: 22 | D12: 24 | E12: 23 | F12: 23 | G12: 26 | H12: 23 | I12: 23 | J12: 21 | K12: 23 | L12: 23 | M12: 23 | N12: 24 | O12: 301 | P12: 23.15384615
A13: OCTUBRE | B13: 27 | C13: 26 | D13: 25 | E13: 30 | F13: 25 | G13: 25 | H13: 29 | I13: 25 | J13: 27 | K13: 27 | L13: 25 | M13: 25 | N13: 25 | O13: 341 | P13: 26.23076923
A14: NOVIEMBRE | B14: 27 | C14: 27 | D14: 25 | E14: 29 | F14: 25 | G14: 25 | H14: 28 | I14: 25 | J14: 25 | K14: 28 | L14: 25 | M14: 25 | N14: 26 | O14: 340 | P14: 26.15384615
A15: DICIEMBRE | B15: 23 | C15: 24 | D15: 22 | E15: 25 | F15: 22 | G15: 22 | H15: 24 | I15: 21 | J15: 22 | K15: 33 | L15: 22 | M15: 22 | N15: 22 | O15: =SUM(B15:N15) -> 304 | P15: =AVERAGE(B15:N15) -> 23.38461538
A16: TOTAL AÑO/CENTRO | B16: =SUM(B4:B15) -> 298 | C16: 295 | D16: 286 | E16: 325 | F16: 287 | G16: 298 | H16: 300 | I16: 285 | J16: 288 | K16: 314 | L16: 285 | M16: 295 | N16: 301 | O16: 3857 | P16: =AVERAGE(P4:P15) -> 24.72435897
A28: C/CENTROS CÍVICOS. YG
A33: Los centros han estado funcionando 3857 días durante el año 2016
A35: MESES | B35: ENERO | C35: FEBRERO | D35: MARZO | E35: ABRIL | F35: MAYO | G35: JUNIO | H35: JULIO | I35: AGOSTO | J35: SEPTIEMBRE | K35: OCTUBRE | L35: NOVIEMBRE | M35: DICIEMBRE
A36: MEDIA | B36: =AVERAGE(B4:N4) -> 23.69230769 | C36: =AVERAGE(B5:N5) -> 26.30769231 | D36: =AVERAGE(B6:N6) -> 24.92307692 | E36: =AVERAGE(B7:N7) -> 25.92307692 | F36: =AVERAGE(B8:N8) -> 24.46153846 | G36: =AVERAGE(B9:N9) -> 26.69230769 | H36: =AVERAGE(B10:N10) -> 22.61538462 | I36: =AVERAGE(B11:N11) -> 23.15384615 | J36: =AVERAGE(B12:N12) -> 23.15384615 | K36: =AVERAGE(B13:N13) -> 26.23076923 | L36: =AVERAGE(B14:N14) -> 26.15384615 | M36: =AVERAGE(B15:N15) -> 23.38461538

Sheet IND.8 SOLICI
A3: SOLICITUDES | B3: Bailarín V.E. 1 | C3: Campillo 2 | D3: Casa Cuna 3 | E3: Delicias 4 | F3: Esgueva 5 | G3: J.MªLuelmo 6 | H3: J.L Mosquera 7 | I3: Parquesol 8 | J3: Pilarica 9 | K3: Rondilla 10 | L3: Victoria 11 | M3: Zona Este 12 | N3: Zona Sur 13 | O3: TOTAL
A4: ENERO | B4: 52 | C4: 22 | D4: 28 | E4: 29 | F4: 46 | G4: 123 | H4: 56 | I4: 6 | J4: 39 | K4: 60 | L4: 37 | M4: 50 | N4: 66 | O4: =SUM(B4:N4) -> 614
A5: FEBRERO | B5: 45 | C5: 33 | D5: 21 | E5: 32 | F5: 38 | G5: 98 | H5: 79 | I5: 12 | J5: 43 | K5: 40 | L5: 45 | M5: 52 | N5: 64 | O5: 602
A6: MARZO | B6: 62 | C6: 46 | D6: 30 | E6: 35 | F6: 52 | G6: 125 | H6: 68 | I6: 17 | J6: 17 | K6: 40 | L6: 33 | M6: 53 | N6: 72 | O6: 650
A7: ABRIL | B7: 53 | C7: 56 | D7: 31 | E7: 35 | F7: 45 | G7: 96 | H7: 53 | I7: 14 | J7: 38 | K7: 75 | L7: 28 | M7: 60 | N7: 53 | O7: 637
A8: MAYO | B8: 49 | C8: 46 | D8: 20 | E8: 32 | F8: 55 | G8: 125 | H8: 46 | I8: 11 | J8: 49 | K8: 80 | L8: 30 | M8: 42 | N8: 65 | O8: 650
A9: JUNIO | B9: 60 | C9: 57 | D9: 19 | E9: 33 | F9: 48 | G9: 45 | H9: 62 | I9: 41 | J9: 39 | K9: 90 | L9: 19 | M9: 42 | N9: 54 | O9: 609
A10: JULIO | B10: 2 | C10: 2 | D10: 8 | E10: 17 | F10: 15 | G10: 198 | H10: 12 | I10: 1 | J10: 2 | K10: 20 | L10: 0 | M10: 7 | N10: 54 | O10: 338
A11: AGOSTO | B11: 3 | C11: 2 | D11: 3 | E11: 11 | F11: 12 | G11: 13 | H11: 10 | I11: 3 | J11: 3 | K11: 20 | L11: 6 | M11: 6 | N11: 5 | O11: 97
A12: SEPTIEMBRE | B12: 18 | C12: 30 | D12: 17 | E12: 21 | F12: 27 | G12: 60 | H12: 60 | I12: 13 | J12: 15 | K12: 50 | L12: 39 | M12: 43 | N12: 87 | O12: 480
A13: OCTUBRE | B13: 45 | C13: 41 | D13: 28 | E13: 32 | F13: 52 | G13: 80 | H13: 71 | I13: 12 | J13: 25 | K13: 60 | L13: 30 | M13: 47 | N13: 35 | O13: 558
A14: NOVIEMBRE | B14: 52 | C14: 59 | D14: 26 | E14: 37 | F14: 75 | G14: 52 | H14: 69 | I14: 13 | J14: 33 | K14: 80 | L14: 24 | M14: 55 | N14: 44 | O14: 619
A15: DICIEMBRE | B15: 49 | C15: 59 | D15: 20 | E15: 35 | F15: 48 | G15: 25 | H15: 50 | I15: 10 | J15: 15 | K15: 120 | L15: 19 | M15: 40 | N15: 25 | O15: 515
A16: TOTAL ANUAL | B16: =SUM(B4:B15) -> 490 | C16: 453 | D16: 251 | E16: 349 | F16: 513 | G16: 1040 | H16: 636 | I16: 153 | J16: 318 | K16: 735 | L16: 310 | M16: 497 | N16: 624 | O16: 6369
A35: C/CENTROS CÍVICOS. YG

Sheet IND.9 C.C
A4: CONSEJO | B4: B.V.E. | C4: Campillo | D4: Casa Cuna | E4: Delicias | F4: Esgueva | G4: Luelmo | H4: Mosquera | I4: Parquesol | J4: Pilarica | K4: Rondilla | L4: La Victoria | M4: Zona Este | N4: Zona Sur | O4: TOTAL
A5: ENERO
A6: FEBRERO
A7: MARZO
A8: ABRIL
A9: MAYO
A10: JUNIO | B10: 2016-06-15 | C10: 2016-06-15 | D10: 2016-06-09 | E10: 2016-06-09 | F10: 2016-06-16 | G10: 2016-06-13 | H10: 2016-06-16 | I10: 2016-06-10 | J10: 2016-06-15 | K10: 2016-06-13 | L10: 2016-06-17 | M10: 2016-06-16 | N10: 2016-06-17 | O10: 13
A11: JULIO
A12: AGOSTO
A13: SEPTIEMBRE
A14: OCTUBRE
A15: NOVIEMBRE | B15: 2016-11-16 | C15: 2016-01-22 | D15: 2016-11-16 | F15: 2016-11-10 | H15: 2016-11-16 | I15: 2016-11-24 | J15: 2016-11-30 | K15: 2016-11-17 | L15: 2016-11-30 | M15: 2411/2016 | N15: 2016-11-22 | O15: 11
A16: DICIEMBRE | E16: 2016-12-02 | G16: 2016-12-02 | O16: 2
C19: REUNIONES BIANUALES DE LOS CENTROS
B21: 1er Semestre | C21: 2º Semestre.
A22: REALIZADOS | B22: 13 | C22: 13
A29: C/CENTROS CÍVICOS. Y.G

Sheet asociacionismo
A3: asociaciones | B3: B.V.E. | C3: Campillo | D3: Casa Cuna | E3: Delicias | F3: Esgueva | G3: Luelmo | H3: Mosquera | I3: Parquesol | J3: Pilarica | K3: Rondilla | L3: Victoria | M3: Zona Este | N3: Zona Sur | O3: TOTAL
A4: número | B4: 23 | C4: 20 | D4: 25 | E4: 54 | F4: 23 | G4: 35 | H4: 38 | I4: 17 | J4: 18 | K4: 32 | L4: 20 | M4: 16 | N4: 41 | O4: =SUM(B4:N4) -> 362 | P4: 362
A49: C/CENTROS CÍVICOS. YG

Sheet IND.10QUEJAS

Sheet TIPOLOGÍA
J1: ACTIVIDADES PUNTUALES- CERRADAS
B4: TIPOLOGÍA REUNIONES | J4: TIPOLOGÍA ACTIVIDADES
B5: REUNIÓN COMUNIDAD VECINOS | D5: REUNIONES ASOCIACIONES | F5: REUNIONES PARTIDOS POLÍTICOS Y SINDICATOS | H5: REUNIONES SERVICIOS MUNICIPALES | J5: RUEDA PRENSA | L5: SEMINARIOS, ASAMBLEAS, CURSOS… | N5: ENSAYOS PUNTUALES | P5: OTROS
B6: Nº | C6: Asistentes | D6: Nº | E6: Asistentes | F6: Nº | G6: Asistentes | H6: Nº | I6: Asistentes | J6: Nº | K6: Asistentes | L6: Nº | M6: Asistentes | N6: Nº | O6: Asistentes | P6: Nº | Q6: Asistentes | R6: TOTALES | S6: TOTALES
A7: CC BAILARÍN V.ESCUDERO | B7: =SUM([2]ENE:DIC!B8) -> 262 | C7: =SUM([2]ENE:DIC!C8) -> 5378 | D7: =SUM([2]ENE:DIC!D8) -> 35 | E7: =SUM([2]ENE:DIC!E8) -> 901 | F7: =SUM([2]ENE:DIC!F8) -> 5 | G7: =SUM([2]ENE:DIC!G8) -> 762 | H7: =SUM([2]ENE:DIC!H8) -> 1 | I7: =SUM([2]ENE:DIC!I8) -> 2 | J7: =SUM([2]ENE:DIC!J8) -> 1 | K7: =SUM([2]ENE:DIC!K8) -> 3 | L7: =SUM([2]ENE:DIC!L8) -> 69 | M7: =SUM([2]ENE:DIC!M8) -> 6692 | N7: =SUM([2]ENE:DIC!N8) -> 26 | O7: =SUM([2]ENE:DIC!O8) -> 256 | P7: =SUM([2]ENE:DIC!P8) -> 49 | Q7: =SUM([2]ENE:DIC!Q8) -> 2754 | R7: =B7+D7+F7+H7+J7+L7+N7+P7 -> 448 | S7: 16748
A8: CC CAMPILLO | B8: =SUM([2]ENE:DIC!B9) -> 119 | C8: =SUM([2]ENE:DIC!C9) -> 1547 | D8: =SUM([2]ENE:DIC!D9) -> 12 | E8: =SUM([2]ENE:DIC!E9) -> 680 | F8: =SUM([2]ENE:DIC!F9) -> 6 | G8: =SUM([2]ENE:DIC!G9) -> 145 | H8: =SUM([2]ENE:DIC!H9) -> 21 | I8: =SUM([2]ENE:DIC!I9) -> 63 | J8: =SUM([2]ENE:DIC!J9) -> 0 | K8: =SUM([2]ENE:DIC!K9) -> 0 | L8: =SUM([2]ENE:DIC!L9) -> 84 | M8: =SUM([2]ENE:DIC!M9) -> 750 | N8: =SUM([2]ENE:DIC!N9) -> 19 | O8: =SUM([2]ENE:DIC!O9) -> 198 | P8: =SUM([2]ENE:DIC!P9) -> 0 | Q8: =SUM([2]ENE:DIC!Q9) -> 0 | R8: 261 | S8: 3383
A9: CC CASA CUNA | B9: =SUM([2]ENE:DIC!B10) -> 41 | C9: =SUM([2]ENE:DIC!C10) -> 745 | D9: =SUM([2]ENE:DIC!D10) -> 110 | E9: =SUM([2]ENE:DIC!E10) -> 990 | F9: =SUM([2]ENE:DIC!F10) -> 5 | G9: =SUM([2]ENE:DIC!G10) -> 225 | H9: =SUM([2]ENE:DIC!H10) -> 12 | I9: =SUM([2]ENE:DIC!I10) -> 84 | J9: =SUM([2]ENE:DIC!J10) -> 2 | K9: =SUM([2]ENE:DIC!K10) -> 70 | L9: =SUM([2]ENE:DIC!L10) -> 18 | M9: =SUM([2]ENE:DIC!M10) -> 769 | N9: =SUM([2]ENE:DIC!N10) -> 97 | O9: =SUM([2]ENE:DIC!O10) -> 845 | P9: =SUM([2]ENE:DIC!P10) -> 26 | Q9: =SUM([2]ENE:DIC!Q10) -> 1175 | R9: 311 | S9: 4903
A10: CC DELICIAS | B10: =SUM([2]ENE:DIC!B11) -> 70 | C10: =SUM([2]ENE:DIC!C11) -> 2255 | D10: =SUM([2]ENE:DIC!D11) -> 76 | E10: =SUM([2]ENE:DIC!E11) -> 1940 | F10: =SUM([2]ENE:DIC!F11) -> 10 | G10: =SUM([2]ENE:DIC!G11) -> 2435 | H10: =SUM([2]ENE:DIC!H11) -> 58 | I10: =SUM([2]ENE:DIC!I11) -> 1448 | J10: =SUM([2]ENE:DIC!J11) -> 3 | K10: =SUM([2]ENE:DIC!K11) -> 175 | L10: =SUM([2]ENE:DIC!L11) -> 34 | M10: =SUM([2]ENE:DIC!M11) -> 2021 | N10: =SUM([2]ENE:DIC!N11) -> 115 | O10: =SUM([2]ENE:DIC!O11) -> 2550 | P10: =SUM([2]ENE:DIC!P11) -> 32 | Q10: =SUM([2]ENE:DIC!Q11) -> 2310 | R10: 398 | S10: 15134
A11: CC ESGUEVA | B11: =SUM([2]ENE:DIC!B12) -> 195 | C11: =SUM([2]ENE:DIC!C12) -> 5130 | D11: =SUM([2]ENE:DIC!D12) -> 37 | E11: =SUM([2]ENE:DIC!E12) -> 2041 | F11: =SUM([2]ENE:DIC!F12) -> 6 | G11: =SUM([2]ENE:DIC!G12) -> 200 | H11: =SUM([2]ENE:DIC!H12) -> 14 | I11: =SUM([2]ENE:DIC!I12) -> 180 | J11: =SUM([2]ENE:DIC!J12) -> 0 | K11: =SUM([2]ENE:DIC!K12) -> 0 | L11: =SUM([2]ENE:DIC!L12) -> 35 | M11: =SUM([2]ENE:DIC!M12) -> 2085 | N11: =SUM([2]ENE:DIC!N12) -> 29 | O11: =SUM([2]ENE:DIC!O12) -> 360 | P11: =SUM([2]ENE:DIC!P12) -> 33 | Q11: =SUM([2]ENE:DIC!Q12) -> 1930 | R11: 349 | S11: 11926
A12: CC J.M. LUELMO | B12: =SUM([2]ENE:DIC!B13) -> 85 | C12: =SUM([2]ENE:DIC!C13) -> 1619 | D12: =SUM([2]ENE:DIC!D13) -> 63 | E12: =SUM([2]ENE:DIC!E13) -> 1410 | F12: =SUM([2]ENE:DIC!F13) -> 16 | G12: =SUM([2]ENE:DIC!G13) -> 400 | H12: =SUM([2]ENE:DIC!H13) -> 5 | I12: =SUM([2]ENE:DIC!I13) -> 405 | J12: =SUM([2]ENE:DIC!J13) -> 1 | K12: =SUM([2]ENE:DIC!K13) -> 20 | L12: =SUM([2]ENE:DIC!L13) -> 28 | M12: =SUM([2]ENE:DIC!M13) -> 935 | N12: =SUM([2]ENE:DIC!N13) -> 84 | O12: =SUM([2]ENE:DIC!O13) -> 1642 | P12: =SUM([2]ENE:DIC!P13) -> 19 | Q12: =SUM([2]ENE:DIC!Q13) -> 763 | R12: 301 | S12: 7194
A13: CC J.L. MOSQUERA | B13: =SUM([2]ENE:DIC!B14) -> 116 | C13: =SUM([2]ENE:DIC!C14) -> 3334 | D13: =SUM([2]ENE:DIC!D14) -> 63 | E13: =SUM([2]ENE:DIC!E14) -> 1932 | F13: =SUM([2]ENE:DIC!F14) -> 8 | G13: =SUM([2]ENE:DIC!G14) -> 587 | H13: =SUM([2]ENE:DIC!H14) -> 22 | I13: =SUM([2]ENE:DIC!I14) -> 4101 | J13: =SUM([2]ENE:DIC!J14) -> 0 | K13: =SUM([2]ENE:DIC!K14) -> 0 | L13: =SUM([2]ENE:DIC!L14) -> 71 | M13: =SUM([2]ENE:DIC!M14) -> 4662 | N13: =SUM([2]ENE:DIC!N14) -> 97 | O13: =SUM([2]ENE:DIC!O14) -> 2996 | P13: =SUM([2]ENE:DIC!P14) -> 24 | Q13: =SUM([2]ENE:DIC!Q14) -> 1156 | R13: 401 | S13: 18768
A14: CC PARQUESOL | B14: =SUM([2]ENE:DIC!B15) -> 49 | C14: =SUM([2]ENE:DIC!C15) -> 1565 | D14: =SUM([2]ENE:DIC!D15) -> 23 | E14: =SUM([2]ENE:DIC!E15) -> 705 | F14: =SUM([2]ENE:DIC!F15) -> 8 | G14: =SUM([2]ENE:DIC!G15) -> 100 | H14: =SUM([2]ENE:DIC!H15) -> 4 | I14: =SUM([2]ENE:DIC!I15) -> 29 | J14: =SUM([2]ENE:DIC!J15) -> 0 | K14: =SUM([2]ENE:DIC!K15) -> 0 | L14: =SUM([2]ENE:DIC!L15) -> 31 | M14: =SUM([2]ENE:DIC!M15) -> 734 | N14: =SUM([2]ENE:DIC!N15) -> 30 | O14: =SUM([2]ENE:DIC!O15) -> 523 | P14: =SUM([2]ENE:DIC!P15) -> 22 | Q14: =SUM([2]ENE:DIC!Q15) -> 961 | R14: 167 | S14: 4617
A15: CC PILARICA | B15: =SUM([2]ENE:DIC!B16) -> 141 | C15: =SUM([2]ENE:DIC!C16) -> 2900 | D15: =SUM([2]ENE:DIC!D16) -> 139 | E15: =SUM([2]ENE:DIC!E16) -> 2040 | F15: =SUM([2]ENE:DIC!F16) -> 4 | G15: =SUM([2]ENE:DIC!G16) -> 0 | H15: =SUM([2]ENE:DIC!H16) -> 4 | I15: =SUM([2]ENE:DIC!I16) -> 15 | J15: =SUM([2]ENE:DIC!J16) -> 0 | K15: =SUM([2]ENE:DIC!K16) -> 0 | L15: =SUM([2]ENE:DIC!L16) -> 2 | M15: =SUM([2]ENE:DIC!M16) -> 220 | N15: =SUM([2]ENE:DIC!N16) -> 13 | O15: =SUM([2]ENE:DIC!O16) -> 162 | P15: =SUM([2]ENE:DIC!P16) -> 1 | Q15: =SUM([2]ENE:DIC!Q16) -> 60 | R15: 304 | S15: 5397
A16: CC VICTORIA | B16: =SUM([2]ENE:DIC!B17) -> 118 | C16: =SUM([2]ENE:DIC!C17) -> 2560 | D16: =SUM([2]ENE:DIC!D17) -> 55 | E16: =SUM([2]ENE:DIC!E17) -> 1031 | F16: =SUM([2]ENE:DIC!F17) -> 1 | G16: =SUM([2]ENE:DIC!G17) -> 0 | H16: =SUM([2]ENE:DIC!H17) -> 25 | I16: =SUM([2]ENE:DIC!I17) -> 131 | J16: =SUM([2]ENE:DIC!J17) -> 0 | K16: =SUM([2]ENE:DIC!K17) -> 0 | L16: =SUM([2]ENE:DIC!L17) -> 14 | M16: =SUM([2]ENE:DIC!M17) -> 403 | N16: =SUM([2]ENE:DIC!N17) -> 34 | O16: =SUM([2]ENE:DIC!O17) -> 367 | P16: =SUM([2]ENE:DIC!P17) -> 15 | Q16: =SUM([2]ENE:DIC!Q17) -> 650 | R16: 262 | S16: 5142
A17: CC RONDILLA | B17: =SUM([2]ENE:DIC!B18) -> 73 | C17: =SUM([2]ENE:DIC!C18) -> 2311 | D17: =SUM([2]ENE:DIC!D18) -> 62 | E17: =SUM([2]ENE:DIC!E18) -> 1514 | F17: =SUM([2]ENE:DIC!F18) -> 6 | G17: =SUM([2]ENE:DIC!G18) -> 434 | H17: =SUM([2]ENE:DIC!H18) -> 59 | I17: =SUM([2]ENE:DIC!I18) -> 248 | J17: =SUM([2]ENE:DIC!J18) -> 0 | K17: =SUM([2]ENE:DIC!K18) -> 0 | L17: =SUM([2]ENE:DIC!L18) -> 2 | M17: =SUM([2]ENE:DIC!M18) -> 75 | N17: =SUM([2]ENE:DIC!N18) -> 93 | O17: =SUM([2]ENE:DIC!O18) -> 1509 | P17: =SUM([2]ENE:DIC!P18) -> 6 | Q17: =SUM([2]ENE:DIC!Q18) -> 1020 | R17: 301 | S17: 7111
A18: CC ZONA ESTE | B18: =SUM([2]ENE:DIC!B19) -> 203 | C18: =SUM([2]ENE:DIC!C19) -> 4562 | D18: =SUM([2]ENE:DIC!D19) -> 12 | E18: =SUM([2]ENE:DIC!E19) -> 318 | F18: =SUM([2]ENE:DIC!F19) -> 5 | G18: =SUM([2]ENE:DIC!G19) -> 120 | H18: =SUM([2]ENE:DIC!H19) -> 134 | I18: =SUM([2]ENE:DIC!I19) -> 402 | J18: =SUM([2]ENE:DIC!J19) -> 0 | K18: =SUM([2]ENE:DIC!K19) -> 0 | L18: =SUM([2]ENE:DIC!L19) -> 18 | M18: =SUM([2]ENE:DIC!M19) -> 923 | N18: =SUM([2]ENE:DIC!N19) -> 84 | O18: =SUM([2]ENE:DIC!O19) -> 981 | P18: =SUM([2]ENE:DIC!P19) -> 8 | Q18: =SUM([2]ENE:DIC!Q19) -> 2620 | R18: 464 | S18: 9926
A19: CC ZONA SUR | B19: =SUM([2]ENE:DIC!B20) -> 69 | C19: =SUM([2]ENE:DIC!C20) -> 2045 | D19: =SUM([2]ENE:DIC!D20) -> 92 | E19: =SUM([2]ENE:DIC!E20) -> 4454 | F19: =SUM([2]ENE:DIC!F20) -> 25 | G19: =SUM([2]ENE:DIC!G20) -> 1599 | H19: =SUM([2]ENE:DIC!H20) -> 106 | I19: =SUM([2]ENE:DIC!I20) -> 2319 | J19: =SUM([2]ENE:DIC!J20) -> 2 | K19: =SUM([2]ENE:DIC!K20) -> 13 | L19: =SUM([2]ENE:DIC!L20) -> 81 | M19: =SUM([2]ENE:DIC!M20) -> 10947 | N19: =SUM([2]ENE:DIC!N20) -> 85 | O19: =SUM([2]ENE:DIC!O20) -> 1395 | P19: =SUM([2]ENE:DIC!P20) -> 88 | Q19: =SUM([2]ENE:DIC!Q20) -> 4056 | R19: 548 | S19: 26828
A20: CM LAS FLORES | B20: =SUM([2]ENE:DIC!B21) -> 7 | C20: =SUM([2]ENE:DIC!C21) -> 190 | D20: =SUM([2]ENE:DIC!D21) -> 0 | E20: =SUM([2]ENE:DIC!E21) -> 0 | F20: =SUM([2]ENE:DIC!F21) -> 0 | G20: =SUM([2]ENE:DIC!G21) -> 0 | H20: =SUM([2]ENE:DIC!H21) -> 2 | I20: =SUM([2]ENE:DIC!I21) -> 6 | J20: =SUM([2]ENE:DIC!J21) -> 0 | K20: =SUM([2]ENE:DIC!K21) -> 0 | L20: =SUM([2]ENE:DIC!L21) -> 0 | M20: =SUM([2]ENE:DIC!M21) -> 0 | N20: =SUM([2]ENE:DIC!N21) -> 1 | O20: =SUM([2]ENE:DIC!O21) -> 12 | P20: =SUM([2]ENE:DIC!P21) -> 0 | Q20: =SUM([2]ENE:DIC!Q21) -> 0 | R20: 10 | S20: 208
A21: CM LA OVERUELA | B21: 5 | C21: =SUM([2]ENE:DIC!C22) -> 93 | D21: =SUM([2]ENE:DIC!D22) -> 8 | E21: =SUM([2]ENE:DIC!E22) -> 75 | F21: =SUM([2]ENE:DIC!F22) -> 0 | G21: =SUM([2]ENE:DIC!G22) -> 0 | H21: =SUM([2]ENE:DIC!H22) -> 0 | I21: =SUM([2]ENE:DIC!I22) -> 0 | J21: =SUM([2]ENE:DIC!J22) -> 0 | K21: =SUM([2]ENE:DIC!K22) -> 0 | L21: =SUM([2]ENE:DIC!L22) -> 0 | M21: =SUM([2]ENE:DIC!M22) -> 0 | N21: =SUM([2]ENE:DIC!N22) -> 0 | O21: =SUM([2]ENE:DIC!O22) -> 0 | P21: =SUM([2]ENE:DIC!P22) -> 2 | Q21: =SUM([2]ENE:DIC!Q22) -> 60 | R21: 15 | S21: 228
A22: CM PUENTE DUERO | B22: =SUM([2]ENE:DIC!B23) -> 0 | C22: =SUM([2]ENE:DIC!C23) -> 0 | D22: =SUM([2]ENE:DIC!D23) -> 0 | E22: =SUM([2]ENE:DIC!E23) -> 0 | F22: =SUM([2]ENE:DIC!F23) -> 0 | G22: =SUM([2]ENE:DIC!G23) -> 0 | H22: =SUM([2]ENE:DIC!H23) -> 0 | I22: =SUM([2]ENE:DIC!I23) -> 0 | J22: =SUM([2]ENE:DIC!J23) -> 0 | K22: =SUM([2]ENE:DIC!K23) -> 0 | L22: =SUM([2]ENE:DIC!L23) -> 2 | M22: =SUM([2]ENE:DIC!M23) -> 50 | N22: =SUM([2]ENE:DIC!N23) -> 0 | O22: =SUM([2]ENE:DIC!O23) -> 0 | P22: =SUM([2]ENE:DIC!P23) -> 0 | Q22: =SUM([2]ENE:DIC!Q23) -> 0 | R22: 2 | S22: 50
A23: TOTAL | B23: =SUM(B7:B22) -> 1553 | C23: =SUM(C7:C22) -> 36234 | D23: 787 | E23: 20031 | F23: 105 | G23: 7007 | H23: 467 | I23: 9433 | J23: 9 | K23: 281 | L23: 489 | M23: 31266 | N23: 807 | O23: 13796 | P23: 325 | Q23: 19515 | R23: =SUM(R7:R22) -> 4542 | S23: =SUM(S7:S22) -> 137563
A27: LOS CENTROS HAN TENIDO 4.542 ACTIVIDADES PUNTUALES
A29: TIPOLOGÍA | B29: REUNIÓN COMUNIDAD VECINOS | D29: REUNIONES ASOCIACIONES | F29: REUNIONES PARTIDOS POLÍTICOS Y SINDICATOS | H29: REUNIONES SERVICIOS MUNICIPALES | J29: RUEDA PRENSA | L29: SEMINARIOS, ASAMBLEAS, CURSOS… | N29: ENSAYOS PUNTUALES | P29: OTROS
B30: Nº | C30: Asistentes | D30: Nº | E30: Asistentes | F30: Nº | G30: Asistentes | H30: Nº | I30: Asistentes | J30: Nº | K30: Asistentes | L30: Nº | M30: Asistentes | N30: Nº | O30: Asistentes | P30: Nº | Q30: Asistentes
B31: 1553 | C31: 36234 | D31: 787 | E31: 20031 | F31: 105 | G31: 7007 | H31: 467 | I31: 9433 | J31: 9 | K31: 281 | L31: 489 | M31: 31266 | N31: 807 | O31: 13796 | P31: 325 | Q31: 19515
